[Event "Late-Titled-Tuesday-Blitz-January-30-2024"]
[Site "Chess.com"]
[Date "2024.01.30"]
[Round "2"]
[White "winniethepooh04"]
[Black "picturesquecheck"]
[Result "1-0"]
[WhiteElo "2547"]
[BlackElo "2347"]
[TimeControl "180+1"]
[EndTime "14:17:26 PST"]
[Termination "winniethepooh04 won by resignation"]

1. d4 {[%clk 0:03:00.9]} 1... g6 {[%clk 0:03:00]} 2. Nf3 {[%clk 0:03:00.2]} 2...
Bg7 {[%clk 0:03:00.9]} 3. Bf4 {[%clk 0:03:00.4]} 3... d6 {[%clk 0:03:01.1]} 4.
h3 {[%clk 0:03:00.2]} 4... Nf6 {[%clk 0:03:01.4]} 5. e3 {[%clk 0:03:00.8]} 5...
O-O {[%clk 0:03:01.2]} 6. Be2 {[%clk 0:03:01.3]} 6... Nbd7 {[%clk 0:03:01.5]} 7.
O-O {[%clk 0:03:01.8]} 7... Re8 {[%clk 0:03:02]} 8. c4 {[%clk 0:03:02]} 8... b6
{[%clk 0:02:53.5]} 9. Nc3 {[%clk 0:03:01.7]} 9... Bb7 {[%clk 0:02:53.4]} 10. Rc1
{[%clk 0:03:02.3]} 10... e5 {[%clk 0:02:52.5]} 11. Bh2 {[%clk 0:03:02.4]} 11...
c6 {[%clk 0:02:31.7]} 12. b4 {[%clk 0:02:59.9]} 12... Qe7 {[%clk 0:02:31]} 13.
Re1 {[%clk 0:02:57.7]} 13... Rad8 {[%clk 0:02:30.3]} 14. Qb3 {[%clk 0:02:54]}
14... e4 {[%clk 0:02:24.9]} 15. Nd2 {[%clk 0:02:52.5]} 15... Rc8 {[%clk
0:02:20.7]} 16. Bf1 {[%clk 0:02:39.6]} 16... d5 {[%clk 0:02:17.7]} 17. cxd5
{[%clk 0:02:39.5]} 17... cxd5 {[%clk 0:02:18.3]} 18. Nb5 {[%clk 0:02:39.7]}
18... Rxc1 {[%clk 0:01:51]} 19. Rxc1 {[%clk 0:02:38]} 19... Ra8 {[%clk
0:01:27.2]} 20. Bd6 {[%clk 0:02:27.7]} 20... Qd8 {[%clk 0:01:20.6]} 21. Bc7
{[%clk 0:02:24.3]} 21... Qf8 {[%clk 0:01:13.2]} 22. Bh2 {[%clk 0:02:18.7]} 22...
Ne8 {[%clk 0:00:46.5]} 23. Nc7 {[%clk 0:02:18.6]} 23... Rc8 {[%clk 0:00:41.7]}
24. Qb2 {[%clk 0:02:16.2]} 24... Nxc7 {[%clk 0:00:40.3]} 25. Rxc7 {[%clk
0:02:17.1]} 25... Rxc7 {[%clk 0:00:39.4]} 26. Bxc7 {[%clk 0:02:18]} 26... Qc8
{[%clk 0:00:39.6]} 27. Bg3 {[%clk 0:02:17.9]} 27... Bf8 {[%clk 0:00:40]} 28. Nb1
{[%clk 0:02:14.7]} 28... Nf6 {[%clk 0:00:37.5]} 29. a3 {[%clk 0:02:12.6]} 29...
Nh5 {[%clk 0:00:37.6]} 30. Bh2 {[%clk 0:02:12.3]} 30... Qd7 {[%clk 0:00:34.9]}
31. Qc2 {[%clk 0:02:06.2]} 31... Bc6 {[%clk 0:00:34.8]} 32. Nc3 {[%clk
0:02:05.5]} 32... Nf6 {[%clk 0:00:30]} 33. Qb3 {[%clk 0:02:01.9]} 33... Ne8
{[%clk 0:00:27.6]} 34. Be2 {[%clk 0:01:58.1]} 34... Bb7 {[%clk 0:00:26.7]} 35.
Bb5 {[%clk 0:01:56.7]} 35... Qd8 {[%clk 0:00:23.1]} 36. Bg3 {[%clk 0:01:51.4]}
36... Nc7 {[%clk 0:00:19.9]} 37. Be2 {[%clk 0:01:44.6]} 37... Bd6 {[%clk
0:00:19.5]} 38. Bxd6 {[%clk 0:01:43.9]} 38... Qxd6 {[%clk 0:00:20.4]} 39. Qc2
{[%clk 0:01:43.4]} 39... a6 {[%clk 0:00:20.4]} 40. Na4 {[%clk 0:01:41.6]} 40...
Nb5 {[%clk 0:00:17.6]} 41. Bxb5 {[%clk 0:01:36.5]} 41... axb5 {[%clk 0:00:18.5]}
42. Nc3 {[%clk 0:01:36.7]} 42... Bc6 {[%clk 0:00:18.9]} 43. Qe2 {[%clk
0:01:36.3]} 43... Qd7 {[%clk 0:00:18.7]} 44. Qc2 {[%clk 0:01:35.9]} 44... Kg7
{[%clk 0:00:19.2]} 45. Nb1 {[%clk 0:01:35.1]} 45... Qd6 {[%clk 0:00:18.7]} 46.
Nd2 {[%clk 0:01:35.3]} 46... Qd7 {[%clk 0:00:19]} 47. Nf1 {[%clk 0:01:33.4]}
47... f5 {[%clk 0:00:19.2]} 48. h4 {[%clk 0:01:33.2]} 48... h5 {[%clk
0:00:19.6]} 49. Ng3 {[%clk 0:01:31.4]} 49... Bb7 {[%clk 0:00:19.7]} 50. Ne2
{[%clk 0:01:31.7]} 50... Bc6 {[%clk 0:00:19.9]} 51. Nf4 {[%clk 0:01:32]} 51...
Kf6 {[%clk 0:00:19.4]} 52. Qc3 {[%clk 0:01:28.9]} 52... Kg7 {[%clk 0:00:19]} 53.
Qe1 {[%clk 0:01:23.9]} 53... Kh6 {[%clk 0:00:19.1]} 54. f3 {[%clk 0:01:23.2]}
54... Qa7 {[%clk 0:00:16.3]} 55. Qg3 {[%clk 0:01:22.7]} 55... Be8 {[%clk
0:00:13]} 56. Qg5+ {[%clk 0:01:21.6]} 56... Kh7 {[%clk 0:00:13.3]} 57. Nxd5
{[%clk 0:01:20.6]} 57... Qf7 {[%clk 0:00:03.8]} 58. Nf6+ {[%clk 0:01:19.3]}
58... Kh8 {[%clk 0:00:04.3]} 59. Qh6+ {[%clk 0:01:18.8]} 1-0

[Event "Late-Titled-Tuesday-Blitz-January-30-2024"]
[Site "Chess.com"]
[Date "2024.01.30"]
[Round "2"]
[White "sotochess"]
[Black "Vladimir_Zakhartsov"]
[Result "0-1"]
[WhiteElo "2568"]
[BlackElo "2848"]
[TimeControl "180+1"]
[EndTime "14:17:28 PST"]
[Termination "Vladimir_Zakhartsov won by resignation"]

1. e4 {[%clk 0:02:58.8]} 1... c5 {[%clk 0:03:00]} 2. Nf3 {[%clk 0:02:58.3]} 2...
d6 {[%clk 0:03:00.5]} 3. d4 {[%clk 0:02:58.2]} 3... Nf6 {[%clk 0:03:01.2]} 4.
dxc5 {[%clk 0:02:53.4]} 4... Qa5+ {[%clk 0:02:59.2]} 5. Nbd2 {[%clk 0:02:50.6]}
5... Qxc5 {[%clk 0:02:55.4]} 6. Bd3 {[%clk 0:02:50]} 6... e6 {[%clk 0:02:54.7]}
7. O-O {[%clk 0:02:49.9]} 7... Be7 {[%clk 0:02:55.2]} 8. Qe2 {[%clk 0:02:49]}
8... Nbd7 {[%clk 0:02:54.1]} 9. c4 {[%clk 0:02:40.5]} 9... O-O {[%clk
0:02:53.7]} 10. b3 {[%clk 0:02:40]} 10... b6 {[%clk 0:02:53.6]} 11. Bb2 {[%clk
0:02:39.8]} 11... Bb7 {[%clk 0:02:54.1]} 12. a3 {[%clk 0:02:36.3]} 12... Qc7
{[%clk 0:02:53.5]} 13. Rac1 {[%clk 0:02:35.5]} 13... a6 {[%clk 0:02:45.6]} 14.
Rfe1 {[%clk 0:02:35.1]} 14... Rfe8 {[%clk 0:02:45.9]} 15. e5 {[%clk 0:02:31.4]}
15... dxe5 {[%clk 0:02:43.5]} 16. Nxe5 {[%clk 0:02:31.5]} 16... Rad8 {[%clk
0:02:38.6]} 17. Ndf3 {[%clk 0:02:28.6]} 17... Nxe5 {[%clk 0:02:30.3]} 18. Nxe5
{[%clk 0:02:28.1]} 18... Bd6 {[%clk 0:02:26.2]} 19. Bc2 {[%clk 0:02:27.9]} 19...
Ba8 {[%clk 0:02:22.7]} 20. Rcd1 {[%clk 0:02:14.5]} 20... Qb7 {[%clk 0:02:16.7]}
21. f3 {[%clk 0:02:05]} 21... Bf8 {[%clk 0:02:13.7]} 22. Rxd8 {[%clk 0:02:02.6]}
22... Rxd8 {[%clk 0:02:13.7]} 23. Rd1 {[%clk 0:02:03.2]} 23... Rxd1+ {[%clk
0:02:12.7]} 24. Qxd1 {[%clk 0:02:03.1]} 24... Qc7 {[%clk 0:02:09.6]} 25. Qe2
{[%clk 0:02:00]} 25... b5 {[%clk 0:02:07]} 26. cxb5 {[%clk 0:01:58]} 26... axb5
{[%clk 0:02:07]} 27. Bd3 {[%clk 0:01:55.5]} 27... Qa7+ {[%clk 0:02:01.1]} 28.
Kf1 {[%clk 0:01:45.5]} 28... Bxa3 {[%clk 0:01:35.8]} 29. Bxb5 {[%clk 0:01:45]}
29... Nd5 {[%clk 0:01:29.1]} 30. Bxa3 {[%clk 0:01:00.5]} 30... Qxa3 {[%clk
0:01:30]} 31. Bc4 {[%clk 0:00:59.5]} 31... g6 {[%clk 0:01:11.7]} 32. Kf2 {[%clk
0:00:52.1]} 32... Qa7+ {[%clk 0:01:08.3]} 33. Kg3 {[%clk 0:00:50.2]} 33... Ne3
{[%clk 0:01:03.7]} 34. Kh3 {[%clk 0:00:41.5]} 34... Qd4 {[%clk 0:00:58.7]} 35.
Ng4 {[%clk 0:00:40.9]} 35... Nxg4 {[%clk 0:00:25.5]} 36. fxg4 {[%clk 0:00:40.7]}
36... Kg7 {[%clk 0:00:21.8]} 37. Kg3 {[%clk 0:00:33.5]} 37... g5 {[%clk
0:00:21.5]} 38. Kh3 {[%clk 0:00:32.2]} 38... h5 {[%clk 0:00:19.6]} 39. g3 {[%clk
0:00:29.3]} 39... hxg4+ {[%clk 0:00:18.4]} 40. Qxg4 {[%clk 0:00:29.1]} 40...
Bg2+ {[%clk 0:00:18.4]} 41. Kxg2 {[%clk 0:00:29.2]} 41... Qxg4 {[%clk
0:00:18.5]} 0-1

[Event "Late-Titled-Tuesday-Blitz-January-30-2024"]
[Site "Chess.com"]
[Date "2024.01.30"]
[Round "2"]
[White "ploddingpawn"]
[Black "Cubitas"]
[Result "0-1"]
[WhiteElo "2436"]
[BlackElo "2735"]
[TimeControl "180+1"]
[EndTime "14:17:31 PST"]
[Termination "Cubitas won by resignation"]

1. d4 {[%clk 0:03:00.9]} 1... Nf6 {[%clk 0:02:59.6]} 2. Bf4 {[%clk 0:02:55.3]}
2... h6 {[%clk 0:02:59]} 3. Nc3 {[%clk 0:02:50.6]} 3... g5 {[%clk 0:02:52.7]} 4.
Be5 {[%clk 0:02:48.3]} 4... Bg7 {[%clk 0:02:50.5]} 5. Nd5 {[%clk 0:02:37.2]}
5... d6 {[%clk 0:02:36.1]} 6. Nxf6+ {[%clk 0:02:32.6]} 6... exf6 {[%clk
0:02:36.3]} 7. Bg3 {[%clk 0:02:32.5]} 7... f5 {[%clk 0:02:36.8]} 8. e3 {[%clk
0:02:31.3]} 8... Qe7 {[%clk 0:02:35.6]} 9. Be2 {[%clk 0:02:19.9]} 9... Nc6
{[%clk 0:02:34.8]} 10. Nf3 {[%clk 0:02:18.4]} 10... Bd7 {[%clk 0:02:31.1]} 11.
Qd2 {[%clk 0:02:14.6]} 11... O-O-O {[%clk 0:02:29.9]} 12. O-O-O {[%clk
0:02:14.6]} 12... h5 {[%clk 0:02:17.2]} 13. h3 {[%clk 0:02:11.2]} 13... h4
{[%clk 0:02:16]} 14. Bh2 {[%clk 0:02:10.2]} 14... g4 {[%clk 0:02:16.5]} 15. Ne1
{[%clk 0:02:05]} 15... Bh6 {[%clk 0:02:15.7]} 16. c3 {[%clk 0:01:34.8]} 16...
Rhg8 {[%clk 0:02:03.1]} 17. Bf4 {[%clk 0:01:28.9]} 17... Bxf4 {[%clk 0:02:01.2]}
18. exf4 {[%clk 0:01:29.8]} 18... Rde8 {[%clk 0:02:01]} 19. Bc4 {[%clk
0:01:23.6]} 19... g3 {[%clk 0:01:59.8]} 20. f3 {[%clk 0:01:18.5]} 20... Na5
{[%clk 0:01:40.2]} 21. Bd3 {[%clk 0:01:16.9]} 21... d5 {[%clk 0:01:37.9]} 22.
Nc2 {[%clk 0:01:15.5]} 22... Qd6 {[%clk 0:01:31.8]} 23. Rhe1 {[%clk 0:01:13]}
23... Be6 {[%clk 0:01:29.1]} 24. Re2 {[%clk 0:01:01.8]} 24... Nc6 {[%clk
0:01:20.6]} 25. Rde1 {[%clk 0:00:56.9]} 25... Ne7 {[%clk 0:01:21.1]} 26. Re5
{[%clk 0:00:44.8]} 26... Ng6 {[%clk 0:01:15.4]} 27. Ne3 {[%clk 0:00:44]} 27...
Nxe5 {[%clk 0:01:13.1]} 28. fxe5 {[%clk 0:00:43.1]} 28... Qd7 {[%clk 0:01:10.3]}
29. f4 {[%clk 0:00:42.3]} 29... f6 {[%clk 0:01:04.8]} 30. Qc2 {[%clk 0:00:40.5]}
30... fxe5 {[%clk 0:01:04.7]} 31. dxe5 {[%clk 0:00:39.9]} 31... d4 {[%clk
0:01:03.8]} 32. cxd4 {[%clk 0:00:36.6]} 32... Qxd4 {[%clk 0:01:03.1]} 33. Nxf5
{[%clk 0:00:34.5]} 33... Qxf4+ {[%clk 0:01:01.6]} 34. Kb1 {[%clk 0:00:30.4]}
34... Kb8 {[%clk 0:00:55.1]} 35. Rf1 {[%clk 0:00:18.8]} 35... Qxe5 {[%clk
0:00:53.1]} 36. Nxh4 {[%clk 0:00:18.9]} 36... Rgf8 {[%clk 0:00:37.4]} 37. Nf3
{[%clk 0:00:16.3]} 37... Qd5 {[%clk 0:00:33]} 38. b3 {[%clk 0:00:13.8]} 38...
Bxh3 {[%clk 0:00:32.1]} 39. Rc1 {[%clk 0:00:12.7]} 39... c6 {[%clk 0:00:31.1]}
40. Bc4 {[%clk 0:00:11.4]} 40... Bf5 {[%clk 0:00:29.8]} 41. Bxd5 {[%clk
0:00:09.1]} 41... cxd5 {[%clk 0:00:28.7]} 0-1

[Event "Late-Titled-Tuesday-Blitz-January-30-2024"]
[Site "Chess.com"]
[Date "2024.01.30"]
[Round "2"]
[White "TheoSlade"]
[Black "HamedWafa4"]
[Result "0-1"]
[WhiteElo "2464"]
[BlackElo "2809"]
[TimeControl "180+1"]
[EndTime "14:17:31 PST"]
[Termination "HamedWafa4 won by checkmate"]

1. d4 {[%clk 0:03:00.9]} 1... Nf6 {[%clk 0:02:59.8]} 2. c4 {[%clk 0:03:01.2]}
2... e6 {[%clk 0:02:59.7]} 3. g3 {[%clk 0:03:01.8]} 3... Bb4+ {[%clk 0:02:59.1]}
4. Nd2 {[%clk 0:03:01.6]} 4... d5 {[%clk 0:02:58.5]} 5. Bg2 {[%clk 0:03:01.6]}
5... O-O {[%clk 0:02:58.6]} 6. Nf3 {[%clk 0:03:02.2]} 6... dxc4 {[%clk
0:02:57.2]} 7. Qc2 {[%clk 0:03:01.1]} 7... a5 {[%clk 0:02:55.7]} 8. a3 {[%clk
0:02:49]} 8... Bxd2+ {[%clk 0:02:54.7]} 9. Bxd2 {[%clk 0:02:49.9]} 9... b5
{[%clk 0:02:55.1]} 10. O-O {[%clk 0:02:39.7]} 10... Bb7 {[%clk 0:02:52.4]} 11.
b3 {[%clk 0:02:19.9]} 11... cxb3 {[%clk 0:02:13.7]} 12. Qxb3 {[%clk 0:02:20.3]}
12... c6 {[%clk 0:02:08]} 13. Bg5 {[%clk 0:02:03.3]} 13... h6 {[%clk 0:02:05.4]}
14. Bxf6 {[%clk 0:02:02.1]} 14... Qxf6 {[%clk 0:02:06.3]} 15. Ne5 {[%clk
0:02:01.9]} 15... Rd8 {[%clk 0:02:06.5]} 16. Rfd1 {[%clk 0:01:57.5]} 16... Qe7
{[%clk 0:01:58.9]} 17. Rac1 {[%clk 0:01:55]} 17... Rd6 {[%clk 0:01:54.2]} 18. e3
{[%clk 0:01:38.8]} 18... Nd7 {[%clk 0:01:53.6]} 19. Nxc6 {[%clk 0:01:32.7]}
19... Bxc6 {[%clk 0:01:50.8]} 20. Bxc6 {[%clk 0:01:30.9]} 20... Rb8 {[%clk
0:01:46.6]} 21. Bxb5 {[%clk 0:01:27.3]} 21... Rd5 {[%clk 0:01:41.6]} 22. a4
{[%clk 0:01:24.9]} 22... Nf8 {[%clk 0:01:41.7]} 23. Qc3 {[%clk 0:01:20.5]} 23...
Qf6 {[%clk 0:01:35.7]} 24. Qc7 {[%clk 0:01:11.8]} 24... Rbd8 {[%clk 0:01:30.6]}
25. Bc6 {[%clk 0:01:08.2]} 25... R5d6 {[%clk 0:01:26.2]} 26. Qxa5 {[%clk
0:01:02.9]} 26... Ng6 {[%clk 0:01:18.9]} 27. Bg2 {[%clk 0:00:40]} 27... e5
{[%clk 0:01:14.7]} 28. d5 {[%clk 0:00:36.1]} 28... h5 {[%clk 0:01:11.8]} 29. Rc6
{[%clk 0:00:35.9]} 29... Rxc6 {[%clk 0:01:09.3]} 30. Ra1 {[%clk 0:00:08.8]}
30... Rc2 {[%clk 0:01:06]} 31. Qe1 {[%clk 0:00:01.9]} 31... e4 {[%clk
0:01:03.1]} 32. a5 {[%clk 0:00:02.5]} 32... Rxf2 {[%clk 0:00:58]} 33. a6 {[%clk
0:00:01.7]} 33... Rb2 {[%clk 0:00:49.2]} 34. a7 {[%clk 0:00:01.6]} 34... Ra8
{[%clk 0:00:49]} 35. Bxe4 {[%clk 0:00:02.3]} 35... Ne5 {[%clk 0:00:48.9]} 36. d6
{[%clk 0:00:02.9]} 36... Nf3+ {[%clk 0:00:48.6]} 37. Bxf3 {[%clk 0:00:03.6]}
37... Qxf3 {[%clk 0:00:49.1]} 38. Qf1 {[%clk 0:00:04]} 38... Qxe3+ {[%clk
0:00:49.1]} 39. Kh1 {[%clk 0:00:04.7]} 39... Qe4+ {[%clk 0:00:49.5]} 40. Kg1
{[%clk 0:00:05.4]} 40... Qd4+ {[%clk 0:00:48.7]} 41. Kh1 {[%clk 0:00:06.1]}
41... Qd5+ {[%clk 0:00:46.4]} 42. Kg1 {[%clk 0:00:06.2]} 42... Qxd6 {[%clk
0:00:47.1]} 43. Qf3 {[%clk 0:00:06.8]} 43... Qb6+ {[%clk 0:00:47.5]} 44. Kh1
{[%clk 0:00:06.6]} 44... Rxa7 {[%clk 0:00:47.9]} 45. Rxa7 {[%clk 0:00:06.2]}
45... Qxa7 {[%clk 0:00:48.6]} 46. Qxh5 {[%clk 0:00:05.7]} 46... Rb1+ {[%clk
0:00:48.1]} 47. Kg2 {[%clk 0:00:06.2]} 47... Qg1+ {[%clk 0:00:48.5]} 48. Kh3
{[%clk 0:00:06.7]} 48... Qf1+ {[%clk 0:00:49.2]} 49. Kh4 {[%clk 0:00:07]} 49...
Rb4+ {[%clk 0:00:49.3]} 50. g4 {[%clk 0:00:07.5]} 50... Qf2+ {[%clk 0:00:49.4]}
51. Kh3 {[%clk 0:00:08.1]} 51... Rb3# {[%clk 0:00:49.2]} 0-1

[Event "Late-Titled-Tuesday-Blitz-January-30-2024"]
[Site "Chess.com"]
[Date "2024.01.30"]
[Round "2"]
[White "lluiss"]
[Black "venturov"]
[Result "1-0"]
[WhiteElo "2184"]
[BlackElo "2470"]
[TimeControl "180+1"]
[EndTime "14:17:31 PST"]
[Termination "lluiss won by resignation"]

1. e4 {[%clk 0:03:00.9]} 1... Nf6 {[%clk 0:02:59.7]} 2. e5 {[%clk 0:02:57.1]}
2... Nd5 {[%clk 0:03:00]} 3. Nc3 {[%clk 0:02:57.6]} 3... e6 {[%clk 0:02:54.9]}
4. Nf3 {[%clk 0:02:53.3]} 4... d6 {[%clk 0:02:54.3]} 5. d4 {[%clk 0:02:51.2]}
5... Nc6 {[%clk 0:02:54.4]} 6. exd6 {[%clk 0:02:35]} 6... Bxd6 {[%clk
0:02:53.5]} 7. Bg5 {[%clk 0:02:27.4]} 7... Be7 {[%clk 0:02:53.5]} 8. Bxe7 {[%clk
0:02:26.3]} 8... Ncxe7 {[%clk 0:02:54]} 9. Be2 {[%clk 0:02:25.8]} 9... O-O
{[%clk 0:02:50.9]} 10. O-O {[%clk 0:02:25.5]} 10... b6 {[%clk 0:02:47.7]} 11.
Nxd5 {[%clk 0:02:24.8]} 11... Nxd5 {[%clk 0:02:45.3]} 12. Ne5 {[%clk 0:02:22.9]}
12... Bb7 {[%clk 0:02:44.8]} 13. Bf3 {[%clk 0:02:22.7]} 13... Qc8 {[%clk
0:02:32.1]} 14. c4 {[%clk 0:02:22.4]} 14... Nf6 {[%clk 0:02:29.5]} 15. Ng4
{[%clk 0:02:06]} 15... Nxg4 {[%clk 0:02:23.7]} 16. Bxb7 {[%clk 0:02:04.7]} 16...
Nxf2 {[%clk 0:01:42.7]} 17. Qf3 {[%clk 0:01:57.9]} 17... Qd8 {[%clk 0:01:11.8]}
18. Qxf2 {[%clk 0:01:51.3]} 18... Rb8 {[%clk 0:01:11.2]} 19. Be4 {[%clk
0:01:49.6]} 19... Qg5 {[%clk 0:01:04.3]} 20. Qf4 {[%clk 0:01:45.3]} 20... Qa5
{[%clk 0:00:59.2]} 21. Rf3 {[%clk 0:01:39.1]} 21... f5 {[%clk 0:00:51]} 22. Bc6
{[%clk 0:01:14.2]} 22... Rbd8 {[%clk 0:00:45.8]} 23. d5 {[%clk 0:01:13.9]} 23...
exd5 {[%clk 0:00:41.1]} 24. Bxd5+ {[%clk 0:01:13]} 24... Kh8 {[%clk 0:00:41.2]}
25. Rh3 {[%clk 0:01:05.9]} 25... c6 {[%clk 0:00:36]} 26. Be6 {[%clk 0:01:01.8]}
26... Rf6 {[%clk 0:00:25.7]} 27. Re3 {[%clk 0:00:52.1]} 27... Qd2 {[%clk
0:00:14.6]} 28. Qf2 {[%clk 0:00:45.7]} 28... Qd4 {[%clk 0:00:05.9]} 29. Rae1
{[%clk 0:00:42.7]} 29... f4 {[%clk 0:00:04.1]} 30. Re4 {[%clk 0:00:38]} 30...
Qd6 {[%clk 0:00:03.7]} 31. Bg4 {[%clk 0:00:29.4]} 31... Rdf8 {[%clk 0:00:03.9]}
32. Re8 {[%clk 0:00:27.1]} 32... g6 {[%clk 0:00:02.9]} 33. Rxf8+ {[%clk
0:00:26.7]} 33... Rxf8 {[%clk 0:00:03.4]} 34. Bf3 {[%clk 0:00:25.9]} 34... b5
{[%clk 0:00:01.8]} 35. cxb5 {[%clk 0:00:25]} 35... cxb5 {[%clk 0:00:02.7]} 36.
Qe2 {[%clk 0:00:25.2]} 36... Qc5+ {[%clk 0:00:02.8]} 37. Kh1 {[%clk 0:00:24.2]}
37... Kg7 {[%clk 0:00:03.5]} 38. Qe7+ {[%clk 0:00:23.7]} 38... Rf7 {[%clk
0:00:04.2]} 39. Qxc5 {[%clk 0:00:22.8]} 1-0

[Event "Late-Titled-Tuesday-Blitz-January-30-2024"]
[Site "Chess.com"]
[Date "2024.01.30"]
[Round "2"]
[White "ValeriyGrinev"]
[Black "RianKapriaga"]
[Result "1-0"]
[WhiteElo "2549"]
[BlackElo "2350"]
[TimeControl "180+1"]
[EndTime "14:17:33 PST"]
[Termination "ValeriyGrinev won on time"]

1. e4 {[%clk 0:03:00.9]} 1... c6 {[%clk 0:02:39.5]} 2. d4 {[%clk 0:03:00.3]}
2... d5 {[%clk 0:02:39.2]} 3. e5 {[%clk 0:03:01.2]} 3... Bf5 {[%clk 0:02:38.6]}
4. Nf3 {[%clk 0:03:01.8]} 4... e6 {[%clk 0:02:38.3]} 5. Be2 {[%clk 0:03:01.9]}
5... Nd7 {[%clk 0:02:35.2]} 6. O-O {[%clk 0:03:02.2]} 6... Ne7 {[%clk
0:02:29.2]} 7. a4 {[%clk 0:02:58]} 7... a5 {[%clk 0:02:26.5]} 8. b3 {[%clk
0:02:52.1]} 8... h6 {[%clk 0:02:26]} 9. c4 {[%clk 0:02:48.7]} 9... Bg6 {[%clk
0:02:20.9]} 10. Ba3 {[%clk 0:02:43.9]} 10... Nf5 {[%clk 0:01:51.6]} 11. Bxf8
{[%clk 0:02:41.8]} 11... Nxf8 {[%clk 0:01:51.5]} 12. c5 {[%clk 0:02:39.6]} 12...
Nd7 {[%clk 0:01:49.2]} 13. Nbd2 {[%clk 0:02:34.6]} 13... Kf8 {[%clk 0:01:48.5]}
14. g4 {[%clk 0:02:29.3]} 14... Nh4 {[%clk 0:01:47.4]} 15. Nxh4 {[%clk
0:02:29.3]} 15... Qxh4 {[%clk 0:01:47]} 16. f4 {[%clk 0:02:25.9]} 16... Kg8
{[%clk 0:01:33.1]} 17. Qe1 {[%clk 0:02:21.5]} 17... Qxe1 {[%clk 0:01:21.5]} 18.
Raxe1 {[%clk 0:02:22.4]} 18... f5 {[%clk 0:01:21.3]} 19. h3 {[%clk 0:01:55.2]}
19... h5 {[%clk 0:01:18.4]} 20. g5 {[%clk 0:01:36.3]} 20... h4 {[%clk
0:01:18.1]} 21. Rb1 {[%clk 0:01:30.7]} 21... Bh5 {[%clk 0:01:14.6]} 22. Bd3
{[%clk 0:01:24.6]} 22... Kf8 {[%clk 0:00:55.4]} 23. Kf2 {[%clk 0:01:24.3]} 23...
Ke7 {[%clk 0:00:54.2]} 24. Ke3 {[%clk 0:01:24.3]} 24... b6 {[%clk 0:00:46.4]}
25. cxb6 {[%clk 0:01:22.8]} 25... Rhb8 {[%clk 0:00:45.9]} 26. Rfc1 {[%clk
0:01:22.1]} 26... Rxb6 {[%clk 0:00:44.6]} 27. Rc3 {[%clk 0:01:21.8]} 27... Rc8
{[%clk 0:00:35]} 28. Rbc1 {[%clk 0:01:21.8]} 28... Nb8 {[%clk 0:00:19.2]} 29.
Nb1 {[%clk 0:01:17.1]} 29... Na6 {[%clk 0:00:18.8]} 30. Bxa6 {[%clk 0:01:16.3]}
30... Rxa6 {[%clk 0:00:18.7]} 31. Na3 {[%clk 0:01:16.4]} 31... Rb6 {[%clk
0:00:18.3]} 32. Nc2 {[%clk 0:01:13.6]} 32... Kd7 {[%clk 0:00:17.4]} 33. Ne1
{[%clk 0:01:13.4]} 33... Rcb8 {[%clk 0:00:15.4]} 34. Nd3 {[%clk 0:01:11.2]}
34... Ke7 {[%clk 0:00:12.7]} 35. Nc5 {[%clk 0:01:07.5]} 35... Be8 {[%clk
0:00:06.7]} 36. Kd2 {[%clk 0:00:58.6]} 36... Rb4 {[%clk 0:00:06.5]} 37. Na6
{[%clk 0:00:54.2]} 37... Rxd4+ {[%clk 0:00:06.5]} 38. Kc2 {[%clk 0:00:51.1]}
38... Rdb4 {[%clk 0:00:05]} 39. Nxb4 {[%clk 0:00:50.1]} 39... Rxb4 {[%clk
0:00:04.1]} 40. Rf1 {[%clk 0:00:45]} 40... Rd4 {[%clk 0:00:02.7]} 41. Kb2 {[%clk
0:00:43.4]} 1-0

[Event "Late-Titled-Tuesday-Blitz-January-30-2024"]
[Site "Chess.com"]
[Date "2024.01.30"]
[Round "2"]
[White "ahmedkandiliii"]
[Black "DonJuanEGenaro"]
[Result "0-1"]
[WhiteElo "2421"]
[BlackElo "2013"]
[TimeControl "180+1"]
[EndTime "14:17:33 PST"]
[Termination "DonJuanEGenaro won by checkmate"]

1. e4 {[%clk 0:03:00.9]} 1... c5 {[%clk 0:02:58.9]} 2. Nf3 {[%clk 0:03:01.4]}
2... Nc6 {[%clk 0:02:58.9]} 3. Bb5 {[%clk 0:03:01.8]} 3... e6 {[%clk 0:02:58.1]}
4. Bxc6 {[%clk 0:03:01.4]} 4... bxc6 {[%clk 0:02:57]} 5. O-O {[%clk 0:03:02.3]}
5... d5 {[%clk 0:02:56.5]} 6. Qe2 {[%clk 0:03:02.4]} 6... Nf6 {[%clk 0:02:55.9]}
7. d3 {[%clk 0:03:02.2]} 7... Be7 {[%clk 0:02:55.7]} 8. Nbd2 {[%clk 0:03:00.7]}
8... O-O {[%clk 0:02:54.9]} 9. Re1 {[%clk 0:02:55.9]} 9... Ba6 {[%clk 0:02:52]}
10. Ne5 {[%clk 0:02:53.9]} 10... Qc7 {[%clk 0:02:42.7]} 11. f4 {[%clk
0:02:51.8]} 11... Bd6 {[%clk 0:02:32.5]} 12. Ng4 {[%clk 0:02:30]} 12... Nxg4
{[%clk 0:02:26]} 13. Qxg4 {[%clk 0:02:30.9]} 13... Bxf4 {[%clk 0:02:23.1]} 14.
g3 {[%clk 0:02:25.3]} 14... Bh6 {[%clk 0:01:57.1]} 15. Nf3 {[%clk 0:02:20]}
15... Bxc1 {[%clk 0:01:54.9]} 16. Raxc1 {[%clk 0:02:20.8]} 16... c4 {[%clk
0:01:49.9]} 17. Qh5 {[%clk 0:02:09.2]} 17... Qb6+ {[%clk 0:01:46.1]} 18. Kh1
{[%clk 0:02:08.1]} 18... cxd3 {[%clk 0:01:41.2]} 19. cxd3 {[%clk 0:02:06.1]}
19... Bxd3 {[%clk 0:01:39.5]} 20. Ng5 {[%clk 0:02:02.8]} 20... h6 {[%clk
0:01:35.9]} 21. Rc3 {[%clk 0:01:51.4]} 21... dxe4 {[%clk 0:01:30.7]} 22. Nxe4
{[%clk 0:01:47.9]} 22... Bxe4+ {[%clk 0:01:28.8]} 23. Rxe4 {[%clk 0:01:48.8]}
23... Qxb2 {[%clk 0:01:27.7]} 24. Rce3 {[%clk 0:01:43.5]} 24... Rad8 {[%clk
0:01:20.5]} 25. Re2 {[%clk 0:01:43]} 25... Rd1+ {[%clk 0:01:19.5]} 26. Kg2
{[%clk 0:01:42.8]} 26... Qb1 {[%clk 0:01:17.5]} 27. Rg4 {[%clk 0:01:38.2]} 27...
Rg1+ {[%clk 0:01:15.9]} 28. Kh3 {[%clk 0:01:35.9]} 28... Qf1+ {[%clk 0:01:15.3]}
29. Kh4 {[%clk 0:01:35.7]} 29... Kh7 {[%clk 0:00:45.2]} 30. Re5 {[%clk
0:00:57.3]} 30... g6 {[%clk 0:00:37.2]} 31. Reg5 {[%clk 0:00:16.9]} 31... gxh5
{[%clk 0:00:31.6]} 32. Rg7+ {[%clk 0:00:16.7]} 32... Kh8 {[%clk 0:00:31.5]} 33.
Kxh5 {[%clk 0:00:17.2]} 33... Qh3+ {[%clk 0:00:29.2]} 34. Rh4 {[%clk 0:00:17.1]}
34... Qf5+ {[%clk 0:00:27.6]} 35. Kxh6 {[%clk 0:00:16.4]} 35... Rg8 {[%clk
0:00:24.5]} 36. Rxg8+ {[%clk 0:00:08.7]} 36... Kxg8 {[%clk 0:00:22.9]} 37. Rb4
{[%clk 0:00:09.3]} 37... Qg6# {[%clk 0:00:22]} 0-1